[Event "XLV Sevilla Open 2020"]
[Site "Sevilla"]
[Date "2020.01.17"]
[Round "8.3"]
[White "Gagare, Shardul"]
[Black "Li, Di"]
[Result "0-1"]
[ECO "C50"]
[WhiteElo "2481"]
[BlackElo "2562"]
[Annotator "RC"]
[PlyCount "160"]
[EventDate "2020.01.05"]
[EventType "swiss"]
[EventCountry "ESP"]
[SourceTitle "playchess.com"]
[Source "ChessBase"]
[SourceQuality "1"]
[TimeControl "5400+30"]

1. e4 {[%emt 0:05:52]} e5 {[%emt 0:00:00]} 2. Bc4 {[%emt 0:00:06]} Nf6 {[%emt 0:00:00]} 3. d3 {[%emt 0:00:05]} Nc6 {[%emt 0:00:13]} 4. Nf3 {[%emt 0:00:09]} Bc5 {[%emt 0:00:09]} 5. c3 {[%emt 0:00:13]} O-O {[%emt 0:00:12]} 6. Nbd2 {[%emt 0:00:10]} d6 {[%emt 0:00:30]} 7. h3 {[%emt 0:00:19]} a5 {[%emt 0:00:45]} 8. O-O {[%emt 0:01:55]} h6 {[%emt 0:00:47]} 9. Re1 {[%emt 0:00:22]} Be6 {[%emt 0:00:08]} 10. Bb5 {[%emt 0:00:08]} Qb8 {[%emt 0:00:07]} 11. Nf1 {[%emt 0:02:30]} Qa7 {[%emt 0:00:22]} 12. d4 {[%emt 0:00:12]} exd4 {[%emt 0:00:27]} 13. Bxc6 {[%emt 0:00:06]} bxc6 {[%emt 0:00:51]} 14. cxd4 {[%emt 0:00:06]} Bb6 {[%emt 0:01:34]} 15. Ng3 {[%emt 0:07:15]} Rfe8 {[%emt 0:00:53]} 16. a4 {[%emt 0:17:52]} Rab8 {[%emt 0:21:34]} 17. Ra3 {[%emt 0:02:07]} Qa6 {[%emt 0:06:46]} 18. Bxh6 {[%emt 0:34:51]} gxh6 {[%emt 0:01:00]} 19. Qd2 {[%emt 0:02:57]} Kg7 {[%emt 0:12:30]} 20. Nh4 {[%emt 0:02:10]} Rg8 {[%emt 0:10:54]} 21. d5 {[%emt 0:04:39]} cxd5 {[%emt 0:12:44]} 22. exd5 {[%emt 0:00:06]} Bxd5 {[%emt 0:01:30]} 23. Qc3 {[%emt 0:06:49]} Bxf2+ {[%emt 0:05:05]} 24. Kxf2 {[%emt 0:00:06]} Qb6+ {[%emt 0:00:04]} 25. Kf1 {[%emt 0:00:05]} Kh7 {[%emt 0:12:02]} 26. Qxf6 {[%emt 0:00:24]} Bc4+ {[%emt 0:00:04]} 27. Ne2 {[%emt 0:00:49]} Qxb2 {[%emt 0:03:12]} 28. Qf5+ {[%emt 0:00:38]} Kh8 {[%emt 0:00:01]} 29. Qf4 {[%emt 0:00:50]} Rg5 {[%emt 0:00:18]} 30. Re3 {[%emt 0:02:00]} Rb4 {[%emt 0:01:16]} 31. Qf2 {[%emt 0:02:43]} Rxa4 {[%emt 0:00:58]} 32. Nf3 {[%emt 0:02:08]} Rg6 {[%emt 0:01:45]} 33. Kg1 {[%emt 0:00:21]} Be6 {[%emt 0:00:12]} 34. Kh2 {[%emt 0:01:58]} Rc4 {[%emt 0:01:16]} 35. Rd3 {[%emt 0:01:06]} Qf6 {[%emt 0:02:14]} 36. Ned4 {[%emt 0:02:03]} Bd5 {[%emt 0:01:25]} 37. Qd2 {[%emt 0:01:24]} a4 {[%emt 0:00:18]} 38. Re8+ {[%emt 0:00:51]} Kh7 {[%emt 0:00:07]} 39. Re2 {[%emt 0:00:21]} Kg8 {[%emt 0:03:30]} 40. Re8+ {[%emt 0:00:34]} Kh7 {[%emt 0:00:02]} 41. Re2 {[%emt 0:00:13]} Kg8 {[%emt 0:00:01]} 42. Rc3 {[%emt 0:00:50]} Rxc3 {[%emt 0:00:45]} 43. Qxc3 {[%emt 0:00:02]} Bxf3 {[%emt 0:01:54]} 44. Re8+ {[%emt 0:00:26]} Kh7 {[%emt 0:00:09]} 45. Qxf3 {[%emt 0:01:01]} Qxd4 {[%emt 0:00:33]} 46. Re7 {[%emt 0:00:34]} Rf6 {[%emt 0:01:12]} 47. Rxf7+ {[%emt 0:00:23]} Kg6 {[%emt 0:00:19]} 48. Rxf6+ {[%emt 0:00:05]} Qxf6 {[%emt 0:00:03]} 49. Qg4+ {[%emt 0:00:06]} Kf7 {[%emt 0:00:34]} 50. Qd7+ {[%emt 0:00:30]} Qe7 {[%emt 0:00:15]} 51. Qf5+ {[%emt 0:00:39]} Kg7 {[%emt 0:00:11]} 52. Qg4+ {[%emt 0:00:06]} Qg5 {[%emt 0:00:13]} 53. Qxa4 {[%emt 0:00:13]} Qe5+ {[%emt 0:00:08]} 54. Kg1 {[%emt 0:00:17]} c5 {[%emt 0:00:10]} 55. Qg4+ {[%emt 0:00:45]} Kf6 {[%emt 0:00:13]} 56. Qh4+ {[%emt 0:00:04]} Qg5 {[%emt 0:00:13]} 57. Qf2+ {[%emt 0:00:12]} Ke5 {[%emt 0:00:20]} 58. Qe2+ {[%emt 0:00:21]} Kf6 {[%emt 0:00:35]} 59. Qf2+ {[%emt 0:00:11]} Ke6 {[%emt 0:00:29]} 60. Qe2+ {[%emt 0:00:17]} Qe5 {[%emt 0:00:12]} 61. Qc4+ {[%emt 0:00:16]} Ke7 {[%emt 0:00:33]} 62. Qh4+ {[%emt 0:00:03]} Qf6 {[%emt 0:03:19]} 63. Qe4+ {[%emt 0:00:08]} Kd8 {[%emt 0:00:16]} 64. Qa8+ {[%emt 0:01:49]} Kc7 {[%emt 0:00:01]} 65. Qa7+ {[%emt 0:00:22]} Kc6 {[%emt 0:00:01]} 66. Qa6+ {[%emt 0:00:13]} Kd5 {[%emt 0:00:09]} 67. Qb7+ {[%emt 0:00:09]} Kc4 {[%emt 0:00:14]} 68. Qa6+ {[%emt 0:00:10]} Kb4 {[%emt 0:00:35]} 69. Qb6+ {[%emt 0:00:18]} Kc3 {[%emt 0:00:04]} 70. Qa5+ {[%emt 0:00:07]} Kd3 {[%emt 0:00:39]} 71. Qb5+ {[%emt 0:00:47]} Kd2 {[%emt 0:00:40]} 72. Qa5+ {[%emt 0:01:11]} Qc3 {[%emt 0:00:19]} 73. Qa2+ {[%emt 0:00:28]} Kc1 {[%emt 0:00:08]} 74. Qe6 {[%emt 0:00:34]} Qd4+ {[%emt 0:00:39]} 75. Kh1 {[%emt 0:00:06]} c4 {[%emt 0:02:31]} 76. Qxh6+ {[%emt 0:00:05]} Kb2 {[%emt 0:00:03]} 77. Qh5 {[%emt 0:01:11]} c3 {[%emt 0:00:18]} 78. Qb5+ {[%emt 0:00:13]} Kc1 {[%emt 0:00:13]} 79. Qg5+ {[%emt 0:01:33]} Qd2 {[%emt 0:00:16]} 80. Qg3 {[%emt 0:02:34]} Kb2 {[%emt 0:01:09]} 0-1

[Event "XLV Sevilla Open 2020"]
[Site "Sevilla"]
[Date "2020.01.17"]
[Round "8.4"]
[White "Das, Arghyadip"]
[Black "Shariyazdanov, Andrey"]
[Result "1/2-1/2"]
[ECO "B32"]
[WhiteElo "2451"]
[BlackElo "2519"]
[Annotator "ChessBase"]
[PlyCount "72"]
[EventDate "2020.01.05"]
[EventType "swiss"]
[EventCountry "ESP"]
[SourceTitle "playchess.com"]
[Source "ChessBase"]
[SourceQuality "1"]
[TimeControl "5400+30"]

1. e4 {[%emt 0:00:00]} c5 {[%emt 0:00:00]} 2. Nf3 {[%emt 0:00:00]} Nc6 {[%emt 0:00:00]} 3. d4 {[%emt 0:00:18]} cxd4 {[%emt 0:00:00]} 4. Nxd4 {[%emt 0:00:04]} e5 {[%emt 0:00:11]} 5. Nb5 {[%emt 0:00:17]} d6 {[%emt 0:00:08]} 6. c4 {[%emt 0:00:16]} Be7 {[%emt 0:00:19]} 7. N5c3 {[%emt 0:00:12]} Nf6 {[%emt 0:00:53]} 8. Bd3 {[%emt 0:00:38]} O-O {[%emt 0:01:19]} 9. O-O {[%emt 0:00:22]} Nd7 {[%emt 0:00:42]} 10. Nd5 {[%emt 0:01:42]} Bg5 {[%emt 0:01:12]} 11. Nbc3 {[%emt 0:00:30]} Nc5 {[%emt 0:01:14]} 12. b4 {[%emt 0:06:54]} Bxc1 {[%emt 0:09:25]} 13. Rxc1 {[%emt 0:00:32]} Ne6 {[%emt 0:00:16]} 14. Bb1 {[%emt 0:08:24]} a5 {[%emt 0:13:57]} 15. a3 {[%emt 0:00:51]} axb4 {[%emt 0:00:05]} 16. axb4 {[%emt 0:00:13]} Ncd4 {[%emt 0:02:49]} 17. Kh1 {[%emt 0:08:36]} Qg5 {[%emt 0:07:01]} 18. g3 {[%emt 0:05:11]} Qd8 {[%emt 0:06:04]} 19. f4 {[%emt 0:18:15]} Nc7 {[%emt 0:05:54]} 20. Nb6 {[%emt 0:11:48]} Ra6 {[%emt 0:02:09]} 21. fxe5 {[%emt 0:06:39]} dxe5 {[%emt 0:02:25]} 22. c5 {[%emt 0:00:06]} Bh3 {[%emt 0:01:55]} 23. Rf2 {[%emt 0:01:23]} Qg5 {[%emt 0:01:14]} 24. Ba2 {[%emt 0:04:57]} h5 {[%emt 0:13:36]} 25. Bc4 {[%emt 0:04:23]} Ra3 {[%emt 0:02:34]} 26. Nbd5 {[%emt 0:01:41]} Nxd5 {[%emt 0:01:46]} 27. exd5 {[%emt 0:00:18]} h4 {[%emt 0:06:46]} 28. Qd2 {[%emt 0:00:45]} Qh5 {[%emt 0:00:27]} 29. Qd3 {[%emt 0:04:00]} Bf5 {[%emt 0:04:04]} 30. Qe3 {[%emt 0:01:16]} hxg3 {[%emt 0:00:47]} 31. Qxg3 {[%emt 0:00:05]} Be4+ {[%emt 0:00:18]} 32. Nxe4 {[%emt 0:01:30]} Rxg3 {[%emt 0:00:06]} 33. Nxg3 {[%emt 0:00:02]} Qg5 {[%emt 0:01:11]} 34. Re1 {[%emt 0:00:08]} g6 {[%emt 0:02:28]} 35. d6 {[%emt 0:00:05]} Kg7 {[%emt 0:00:11]} 36. Bd5 {[%emt 0:00:17]} f6 {[%emt 0:02:57]} 1/2-1/2

[Event "XLV Sevilla Open 2020"]
[Site "Sevilla"]
[Date "2020.01.17"]
[Round "8.7"]
[White "Harutyunian, Tigran K."]
[Black "Campora, Daniel H."]
[Result "0-1"]
[ECO "A16"]
[WhiteElo "2533"]
[BlackElo "2420"]
[Annotator "ChessBase"]
[PlyCount "98"]
[EventDate "2020.01.05"]
[EventType "swiss"]
[EventCountry "ESP"]
[SourceTitle "playchess.com"]
[Source "ChessBase"]
[SourceQuality "1"]
[TimeControl "5400+30"]

1. c4 Nf6 2. Nc3 e5 3. Nf3 d6 4. g3 Be7 5. Bg2 O-O 6. d4 Nbd7 7. O-O c6 8. Qc2 Re8 9. b3 Bf8 10. e4 a6 11. Rd1 Qc7 12. h3 h6 13. Be3 b5 14. Rac1 b4 15. Ne2 c5 16. d5 a5 17. g4 Nh7 18. Ng3 a4 19. g5 hxg5 20. Nxg5 Nxg5 21. Bxg5 g6 22. Kh2 Bg7 23. Rg1 Nf8 24. Qd2 Nh7 25. Bh6 Qe7 26. Rcf1 axb3 27. axb3 Ra3 28. Bxg7 Kxg7 29. Qb2 Qh4 30. f4 Nf6 31. Rf3 Rh8 32. Rgf1 Kg8 33. fxe5 Ng4+ 34. Kg1 Nxe5 35. Qf2 Qe7 36. Re3 Bxh3 37. Nf5 Bxf5 38. exf5 Qh4 39. Qxh4 Rxh4 40. fxg6 fxg6 41. Rf6 Ra1+ 42. Bf1 Rh5 43. Rg3 Kg7 44. Rf2 Rh4 45. Kg2 Rg4 46. Kh3 Rxg3+ 47. Kxg3 Rb1 48. Kh4 Rxb3 49. Kg5 Rf3 0-1

[Event "XLV Sevilla Open 2020"]
[Site "Sevilla"]
[Date "2020.01.17"]
[Round "8.9"]
[White "Swayams, Mishra"]
[Black "Barrish, Daniel"]
[Result "1/2-1/2"]
[ECO "A06"]
[WhiteElo "2479"]
[BlackElo "2352"]
[Annotator "ChessBase"]
[PlyCount "77"]
[EventDate "2020.01.05"]
[EventType "swiss"]
[EventCountry "ESP"]
[SourceTitle "playchess.com"]
[Source "ChessBase"]
[SourceQuality "1"]
[TimeControl "5400+30"]

1. Nf3 {[%emt 0:00:50]} d5 {[%emt 0:00:00]} 2. g3 {[%emt 0:00:28]} c6 {[%emt 0:00:46]} 3. Bg2 {[%emt 0:00:28]} Bg4 {[%emt 0:00:09]} 4. O-O {[%emt 0:04:23]} Nd7 {[%emt 0:01:11]} 5. d3 {[%emt 0:02:04]} e5 {[%emt 0:01:42]} 6. c4 {[%emt 0:06:37]} dxc4 {[%emt 0:10:20]} 7. dxc4 {[%emt 0:02:43]} Ngf6 {[%emt 0:00:15]} 8. Nc3 {[%emt 0:02:04]} Be7 {[%emt 0:01:47]} 9. h3 {[%emt 0:01:00]} Be6 {[%emt 0:01:42]} 10. b3 {[%emt 0:00:07]} h6 {[%emt 0:02:49]} 11. Qc2 {[%emt 0:00:34]} O-O {[%emt 0:01:50]} 12. Nh4 {[%emt 0:01:15]} Re8 {[%emt 0:04:29]} 13. Nf5 {[%emt 0:03:29]} Bf8 {[%emt 0:00:56]} 14. g4 {[%emt 0:01:15]} Qc7 {[%emt 0:05:05]} 15. Be3 {[%emt 0:01:01]} Rac8 {[%emt 0:02:20]} 16. Ne4 {[%emt 0:18:56]} Nxe4 {[%emt 0:07:15]} 17. Bxe4 {[%emt 0:01:08]} Nc5 {[%emt 0:02:08]} 18. Bg2 {[%emt 0:07:01]} a5 {[%emt 0:00:44]} 19. Rfd1 {[%emt 0:02:17]} Red8 {[%emt 0:05:15]} 20. Ng3 {[%emt 0:05:05]} Rxd1+ {[%emt 0:03:19]} 21. Rxd1 {[%emt 0:00:08]} b5 {[%emt 0:07:05]} 22. cxb5 {[%emt 0:00:38]} cxb5 {[%emt 0:00:06]} 23. Rc1 {[%emt 0:05:36]} Qb8 {[%emt 0:04:49]} 24. Qd2 {[%emt 0:01:35]} b4 {[%emt 0:00:19]} 25. Ne4 {[%emt 0:02:00]} Nxe4 {[%emt 0:02:29]} 26. Rxc8 {[%emt 0:01:06]} Qxc8 {[%emt 0:01:31]} 27. Bxe4 {[%emt 0:00:02]} h5 {[%emt 0:10:26]} 28. f3 {[%emt 0:01:18]} hxg4 29. hxg4 {[%emt 0:00:16]} Bc5 {[%emt 0:01:45]} 30. Kg2 {[%emt 0:03:49]} Bxe3 {[%emt 0:01:35]} 31. Qxe3 {[%emt 0:00:02]} Qc7 {[%emt 0:05:21]} 32. Qd3 {[%emt 0:02:19]} Kf8 {[%emt 0:04:04]} 33. Qb5 {[%emt 0:04:52]} g6 {[%emt 0:00:54]} 34. Bd3 {[%emt 0:01:17]} Kg7 {[%emt 0:01:07]} 35. Bc4 {[%emt 0:01:18]} Bd7 {[%emt 0:03:00]} 36. Qd5 {[%emt 0:00:02]} Be6 {[%emt 0:00:15]} 37. Qb5 {[%emt 0:00:01]} Bd7 {[%emt 0:00:06]} 38. Qd5 {[%emt 0:01:15]} Be6 {[%emt 0:00:04]} 39. Qb5 1/2-1/2

[Event "XLV Sevilla Open 2020"]
[Site "Sevilla"]
[Date "2020.01.17"]
[Round "8.10"]
[White "Panjwani, Raja"]
[Black "Pingin, Artem"]
[Result "0-1"]
[ECO "A05"]
[WhiteElo "2444"]
[BlackElo "2143"]
[Annotator "ChessBase"]
[PlyCount "78"]
[EventDate "2020.01.05"]
[EventType "swiss"]
[EventCountry "ESP"]
[SourceTitle "playchess.com"]
[Source "ChessBase"]
[SourceQuality "1"]
[TimeControl "5400+30"]

1. Nf3 Nf6 2. g3 e6 3. Bg2 d5 4. O-O Be7 5. d3 O-O 6. Nbd2 c5 7. e4 Nc6 8. e5 Nd7 9. Re1 Qc7 10. Qe2 b5 11. h4 Bb7 12. Nf1 Rfc8 13. Bf4 Nf8 14. h5 h6 15. N1h2 Qd8 16. Ng4 Nh7 17. c3 a5 18. Qd2 Ba6 19. Rac1 Ra7 20. Bf1 b4 21. Qc2 Rd7 22. Bxh6 gxh6 23. d4 Bxf1 24. Nxh6+ Kg7 25. Nxf7 Qg8 26. Qg6+ Kf8 27. Qxe6 Rdc7 28. Qxd5 Bh3 29. e6 Nf6 30. Qg5 cxd4 31. Qb5 Qg4 32. N7g5 Qxh5 33. cxd4 Nxd4 34. Rxc7 Nxf3+ 35. Nxf3 Qxb5 36. Rxc8+ Kg7 37. Kh2 Qf5 38. Rc7 Nd5 39. Rc4 Bg4 0-1

[Event "XLV Sevilla Open 2020"]
[Site "Sevilla"]
[Date "2020.01.17"]
[Round "8.11"]
[White "Polivanov, Anatoliy"]
[Black "Gu, Tianlu"]
[Result "1/2-1/2"]
[ECO "B30"]
[WhiteElo "2420"]
[BlackElo "2255"]
[Annotator "ChessBase"]
[PlyCount "72"]
[EventDate "2020.01.05"]
[EventType "swiss"]
[EventCountry "ESP"]
[SourceTitle "playchess.com"]
[Source "ChessBase"]
[SourceQuality "1"]
[TimeControl "5400+30"]

1. e4 {[%emt 0:00:00]} c5 {[%emt 0:00:35]} 2. Nf3 {[%emt 0:00:00]} Nc6 {[%emt 0:00:13]} 3. c3 {[%emt 0:00:00]} Nf6 {[%emt 0:00:37]} 4. e5 {[%emt 0:00:00]} Nd5 {[%emt 0:00:13]} 5. Bc4 {[%emt 0:00:00]} Nb6 {[%emt 0:00:36]} 6. Bb3 {[%emt 0:00:00]} d5 {[%emt 0:01:38]} 7. exd6 {[%emt 0:00:12]} Qxd6 {[%emt 0:00:16]} 8. Na3 {[%emt 0:00:25]} Be6 {[%emt 0:01:38]} 9. d4 {[%emt 0:00:10]} cxd4 {[%emt 0:05:41]} 10. Nb5 {[%emt 0:00:15]} Qd7 {[%emt 0:00:43]} 11. O-O {[%emt 0:03:22]} Bxb3 {[%emt 0:07:33]} 12. axb3 {[%emt 0:00:04]} a6 {[%emt 0:02:05]} 13. Nbxd4 {[%emt 0:00:05]} Nxd4 {[%emt 0:01:45]} 14. Nxd4 {[%emt 0:00:04]} g6 {[%emt 0:03:29]} 15. b4 {[%emt 0:00:09]} Bg7 {[%emt 0:00:36]} 16. Nb3 {[%emt 0:00:05]} Qc7 {[%emt 0:01:26]} 17. Ra5 {[%emt 0:15:22]} Rd8 {[%emt 0:03:58]} 18. Qf3 {[%emt 0:05:16]} O-O {[%emt 0:00:57]} 19. Rc5 {[%emt 0:01:31]} Qb8 {[%emt 0:01:45]} 20. Na5 {[%emt 0:03:59]} Rd7 {[%emt 0:06:17]} 21. Re1 {[%emt 0:10:50]} e5 {[%emt 0:02:11]} 22. b5 {[%emt 0:03:38]} Qd6 {[%emt 0:19:05]} 23. b4 {[%emt 0:05:04]} Na4 {[%emt 0:05:14]} 24. Nxb7 {[%emt 0:06:27]} Qb6 {[%emt 0:00:27]} 25. bxa6 {[%emt 0:00:55]} e4 {[%emt 0:01:19]} 26. Qg4 {[%emt 0:06:28]} Nxc5 {[%emt 0:09:09]} 27. Nxc5 {[%emt 0:00:12]} Rdd8 {[%emt 0:05:14]} 28. Nd7 {[%emt 0:11:15]} Qxa6 {[%emt 0:00:11]} 29. Nxf8 {[%emt 0:00:06]} Bxc3 {[%emt 0:01:48]} 30. Ne6 {[%emt 0:21:35]} Qxe6 {[%emt 0:04:19]} 31. Qxe6 {[%emt 0:00:06]} fxe6 {[%emt 0:00:04]} 32. Rf1 {[%emt 0:00:04]} Bxb4 {[%emt 0:01:07]} 33. Be3 {[%emt 0:00:12]} Bc3 {[%emt 0:02:20]} 34. Rc1 {[%emt 0:02:38]} Bd4 {[%emt 0:00:10]} 35. Bxd4 {[%emt 0:01:40]} Rxd4 {[%emt 0:00:07]} 36. Kf1 {[%emt 0:00:03]} e3 {[%emt 0:01:50]} 1/2-1/2

[Event "XLV Sevilla Open 2020"]
[Site "Sevilla"]
[Date "2020.01.17"]
[Round "8.12"]
[White "Pap, Misa"]
[Black "Borsos, Bogdan"]
[Result "1-0"]
[ECO "B60"]
[WhiteElo "2427"]
[BlackElo "2214"]
[Annotator "ChessBase"]
[PlyCount "29"]
[EventDate "2020.01.05"]
[EventType "swiss"]
[EventCountry "ESP"]
[SourceTitle "playchess.com"]
[Source "ChessBase"]
[SourceQuality "1"]
[TimeControl "5400+30"]

1. e4 {[%emt 0:12:07]} c5 {[%emt 0:00:00]} 2. Nf3 {[%emt 0:00:54]} Nc6 {[%emt 0:00:00]} 3. d4 {[%emt 0:00:47]} cxd4 {[%emt 0:00:00]} 4. Nxd4 {[%emt 0:00:03]} Nf6 {[%emt 0:00:01]} 5. Nc3 {[%emt 0:00:08]} d6 {[%emt 0:00:58]} 6. Bg5 {[%emt 0:00:14]} Bd7 {[%emt 0:00:24]} 7. Be2 {[%emt 0:04:17]} Qa5 {[%emt 0:00:57]} 8. Bxf6 {[%emt 0:00:18]} gxf6 {[%emt 0:00:16]} 9. O-O {[%emt 0:01:22]} Rc8 {[%emt 0:00:41]} 10. Nf5 {[%emt 0:00:03]} Qc5 {[%emt 0:10:32]} 11. Nd5 {[%emt 0:16:49]} Nb4 {[%emt 0:08:39]} 12. Bg4 {[%emt 0:16:16]} Nxd5 {[%emt 0:04:07]} 13. exd5 {[%emt 0:02:09]} Rg8 {[%emt 0:16:25]} 14. Re1 {[%emt 0:05:17]} Qb4 {[%emt 0:07:39]} 15. Nxe7 {[%emt 0:08:37]} 1-0

[Event "XLV Sevilla Open 2020"]
[Site "Sevilla"]
[Date "2020.01.17"]
[Round "8.16"]
[White "Gutierrez Olivares, Daniel"]
[Black "Soldo, Robert"]
[Result "1-0"]
[ECO "A05"]
[WhiteElo "2358"]
[BlackElo "2180"]
[Annotator "ChessBase"]
[PlyCount "106"]
[EventDate "2020.01.05"]
[EventType "swiss"]
[EventCountry "ESP"]
[SourceTitle "playchess.com"]
[Source "ChessBase"]
[SourceQuality "1"]
[TimeControl "5400+30"]

1. Nf3 {[%emt 0:09:35]} Nf6 {[%emt 0:00:03]} 2. g3 {[%emt 0:00:12]} b6 {[%emt 0:00:48]} 3. Bg2 {[%emt 0:00:22]} Bb7 {[%emt 0:00:03]} 4. d3 {[%emt 0:00:16]} c5 {[%emt 0:01:51]} 5. e4 {[%emt 0:02:19]} d6 {[%emt 0:00:23]} 6. O-O {[%emt 0:00:24]} e6 {[%emt 0:01:13]} 7. Re1 {[%emt 0:03:04]} Be7 {[%emt 0:02:43]} 8. Nbd2 {[%emt 0:00:37]} O-O {[%emt 0:01:07]} 9. Nf1 {[%emt 0:00:22]} Nbd7 {[%emt 0:01:59]} 10. h3 {[%emt 0:00:29]} Qc7 {[%emt 0:00:28]} 11. g4 {[%emt 0:01:04]} Ne5 {[%emt 0:08:44]} 12. N3h2 {[%emt 0:02:09]} Ng6 {[%emt 0:08:46]} 13. f4 {[%emt 0:00:33]} Nd7 {[%emt 0:03:40]} 14. g5 {[%emt 0:02:54]} d5 {[%emt 0:08:56]} 15. Qg4 {[%emt 0:05:31]} dxe4 {[%emt 0:02:15]} 16. dxe4 {[%emt 0:02:22]} c4 {[%emt 0:04:05]} 17. h4 {[%emt 0:00:27]} Bd6 {[%emt 0:03:15]} 18. e5 {[%emt 0:04:59]} Bc5+ {[%emt 0:00:58]} 19. Be3 {[%emt 0:00:32]} Bxg2 {[%emt 0:03:38]} 20. Kxg2 {[%emt 0:00:44]} Ne7 {[%emt 0:00:54]} 21. Ng3 {[%emt 0:01:09]} Bxe3 {[%emt 0:01:45]} 22. Rxe3 {[%emt 0:00:02]} Nc5 {[%emt 0:03:23]} 23. h5 Rfd8 24. Nf3 Qc6 25. Kh3 g6 26. Qh4 Nf5 27. Nxf5 exf5 28. e6 Nxe6 29. Ne5 Qc5 30. Rae1 Ng7 31. hxg6 fxg6 32. Qh6 Rd1 33. Kg2 Rxe1 34. Rxe1 Nh5 35. Rf1 Nxf4+ 36. Rxf4 Qxe5 37. Rh4 Qc7 38. Rd4 Rd8 39. Qh4 b5 40. Rxd8+ Qxd8 41. Qf4 Kf7 42. Kf2 Qb6+ 43. Kf1 Qc6 44. Kf2 Qc5+ 45. Kf1 Qc6 46. Kf2 b4 47. Qh2 Qc5+ 48. Kf1 Kg7 49. Qh6+ Kg8 50. Qh2 Qe7 51. Qf4 Qc5 52. Qb8+ Kf7 53. Qh8 Qc6 1-0

[Event "XLV Sevilla Open 2020"]
[Site "Sevilla"]
[Date "2020.01.17"]
[Round "8.17"]
[White "Almaryami, Mohamed H."]
[Black "Estremera Panos, Sergio"]
[Result "1/2-1/2"]
[ECO "B23"]
[WhiteElo "2015"]
[BlackElo "2307"]
[Annotator "RC"]
[PlyCount "79"]
[EventDate "2020.01.05"]
[EventType "swiss"]
[EventCountry "ESP"]
[SourceTitle "playchess.com"]
[Source "ChessBase"]
[SourceQuality "1"]
[TimeControl "5400+30"]

1. e4 c5 2. Ne2 Nc6 3. Nbc3 d6 4. g3 g6 5. Bg2 Bg7 6. O-O e6 7. d3 Nge7 8. Bg5 h6 9. Be3 Nd4 10. Qd2 Qa5 11. Rab1 Nec6 12. a3 Nxe2+ 13. Nxe2 Qxd2 14. Bxd2 Bd7 15. c4 Rc8 16. b4 b6 17. b5 Nd4 18. Nxd4 Bxd4 19. a4 Kd8 20. a5 Kc7 21. h4 e5 22. Kh2 g5 23. Bh3 gxh4 24. gxh4 h5 25. Rg1 Rh7 26. Rg2 Bxh3 27. Kxh3 Kd7 28. Rg5 Ke6 29. Rbg1 bxa5 30. Rg8 Rh8 31. Rxc8 Rxc8 32. Bxa5 Bxf2 33. Rg5 Rh8 34. Bd2 Bd4 35. Kg2 Bb2 36. Kf3 Bd4 37. Ke2 Bb2 38. Kd1 Bd4 39. Be1 Rb8 40. Rg2 1/2-1/2

[Event "XLV Sevilla Open 2020"]
[Site "Sevilla"]
[Date "2020.01.18"]
[Round "9.1"]
[White "Li, Di"]
[Black "Shevchenko, Kirill"]
[Result "0-1"]
[ECO "A05"]
[WhiteElo "2562"]
[BlackElo "2553"]
[Annotator "RC"]
[PlyCount "126"]
[EventDate "2020.01.05"]
[EventType "swiss"]
[EventCountry "ESP"]
[SourceTitle "playchess.com"]
[Source "ChessBase"]
[SourceQuality "1"]
[TimeControl "5400+30"]

1. Nf3 {[%emt 0:00:00]} Nf6 {[%emt 0:00:00]} 2. c4 {[%emt 0:00:00]} g6 {[%emt 0:01:31]} 3. Nc3 {[%emt 0:00:05]} d5 {[%emt 0:00:35]} 4. cxd5 {[%emt 0:00:17]} Nxd5 {[%emt 0:00:05]} 5. h4 {[%emt 0:00:15]} Bg7 {[%emt 0:03:26]} 6. e4 {[%emt 0:00:30]} Nxc3 {[%emt 0:01:24]} 7. dxc3 {[%emt 0:00:09]} Qxd1+ {[%emt 0:00:35]} 8. Kxd1 {[%emt 0:00:03]} Nd7 {[%emt 0:06:26]} 9. Nd4 {[%emt 0:00:04]} c6 {[%emt 0:02:12]} 10. f3 {[%emt 0:09:01]} h5 {[%emt 0:04:02]} 11. Be3 {[%emt 0:02:37]} Bh6 {[%emt 0:09:14]} 12. Bf2 {[%emt 0:00:13]} Bf4 {[%emt 0:03:27]} 13. a4 {[%emt 0:05:47]} a5 {[%emt 0:02:38]} 14. Kc2 {[%emt 0:00:20]} Bc7 {[%emt 0:02:35]} 15. Nb3 {[%emt 0:02:12]} Nf8 {[%emt 0:18:04]} 16. Nd2 {[%emt 0:01:12]} Be6 {[%emt 0:05:14]} 17. Bd4 {[%emt 0:13:08]} f6 {[%emt 0:04:13]} 18. Be2 {[%emt 0:00:54]} Nd7 {[%emt 0:02:04]} 19. Nc4 {[%emt 0:00:27]} Bxc4 {[%emt 0:06:53]} 20. Bxc4 {[%emt 0:00:11]} e5 {[%emt 0:00:50]} 21. Be3 {[%emt 0:03:40]} Bb6 {[%emt 0:01:28]} 22. Bd2 {[%emt 0:00:08]} Ke7 {[%emt 0:00:48]} 23. Rh3 {[%emt 0:01:24]} Nf8 {[%emt 0:02:12]} 24. Rf1 {[%emt 0:04:41]} Ne6 {[%emt 0:02:09]} 25. g3 {[%emt 0:00:31]} Raf8 {[%emt 0:02:35]} 26. Rh2 {[%emt 0:00:24]} Nc5 {[%emt 0:05:45]} 27. b3 {[%emt 0:00:18]} Kd6 {[%emt 0:04:45]} 28. Re2 {[%emt 0:02:53]} Nd7 {[%emt 0:02:46]} 29. Bc1 {[%emt 0:00:38]} Bc5 {[%emt 0:00:38]} 30. Rd2+ {[%emt 0:04:17]} Ke7 {[%emt 0:00:46]} 31. Re1 {[%emt 0:00:10]} Nb6 {[%emt 0:01:33]} 32. Bf1 {[%emt 0:00:03]} g5 {[%emt 0:01:35]} 33. Be2 {[%emt 0:30:48]} Rfg8 {[%emt 0:00:40]} 34. Bd1 {[%emt 0:00:21]} gxh4 {[%emt 0:00:32]} 35. gxh4 {[%emt 0:00:02]} Rg3 {[%emt 0:00:40]} 36. Rh2 {[%emt 0:00:37]} Nd7 {[%emt 0:02:43]} 37. Rf1 {[%emt 0:01:37]} Bd6 {[%emt 0:00:35]} 38. Be3 {[%emt 0:03:29]} Nc5 {[%emt 0:00:34]} 39. Bf2 {[%emt 0:00:47]} Rg7 {[%emt 0:00:11]} 40. Be2 {[%emt 0:00:37]} Ne6 {[%emt 0:00:31]} 41. Bb6 {[%emt 0:01:22]} Ra8 {[%emt 0:00:58]} 42. Be3 {[%emt 0:01:39]} Rh8 {[%emt 0:00:24]} 43. Bc4 {[%emt 0:02:28]} Bc5 {[%emt 0:00:10]} 44. Bc1 {[%emt 0:02:49]} Rhg8 {[%emt 0:00:35]} 45. Re2 {[%emt 0:06:36]} Rg1 {[%emt 0:00:50]} 46. Rxg1 {[%emt 0:00:29]} Rxg1 {[%emt 0:00:02]} 47. Rh2 {[%emt 0:01:27]} Nf4 {[%emt 0:00:22]} 48. Bd2 {[%emt 0:00:50]} Rg2 {[%emt 0:01:02]} 49. Rxg2 {[%emt 0:01:00]} Nxg2 {[%emt 0:00:01]} 50. b4 {[%emt 0:00:10]} Bb6 {[%emt 0:00:28]} 51. Kd1 {[%emt 0:00:46]} Nxh4 {[%emt 0:00:49]} 52. Ke2 {[%emt 0:00:12]} Ng2 {[%emt 0:00:30]} 53. Kf1 {[%emt 0:01:16]} Be3 {[%emt 0:00:52]} 54. Kxg2 {[%emt 0:00:27]} Bxd2 {[%emt 0:00:01]} 55. bxa5 {[%emt 0:00:02]} Bxc3 {[%emt 0:00:10]} 56. a6 {[%emt 0:00:06]} bxa6 {[%emt 0:00:03]} 57. Bxa6 {[%emt 0:00:09]} Kd6 {[%emt 0:00:09]} 58. Kh3 {[%emt 0:01:50]} Be1 {[%emt 0:00:35]} 59. Bc4 {[%emt 0:00:30]} Kc5 {[%emt 0:00:38]} 60. Bf7 {[%emt 0:00:12]} Kd4 {[%emt 0:01:16]} 61. a5 {[%emt 0:00:37]} Bxa5 {[%emt 0:00:10]} 62. Kh4 {[%emt 0:00:02]} c5 {[%emt 0:00:33]} 63. Kxh5 {[%emt 0:00:04]} Bd2 {[%emt 0:00:12]} 0-1